fUSD/lending_fUSD_20240619
["ID","MTS","AMOUNT","RATE_DAILY","PERIOD"]
[329918160,1718831443419,-500.0,0.00013698,2]
[329918161,1718831443429,-1681.78,0.00013698,2]
[329918162,1718831443438,-500.0,0.00013698,2]
[329918163,1718831443448,-500.0,0.00013698,2]
[329918164,1718831443458,-500.0,0.00013698,2]
[329918165,1718831443468,-867.16,0.00013698,2]
[329918166,1718831443478,-501.92461283,0.00013698,2]
[329918167,1718831443487,-1514.24,0.00013698,2]
[329918168,1718831443496,-500.0,0.00013698,2]
[329918169,1718831443506,-500.0,0.00013698,2]
[329918170,1718831443516,-500.0,0.00013698,2]
[329918171,1718831443526,-500.0,0.00013698,2]
[329918172,1718831443536,-1673.48,0.00013698,2]
[329918174,1718831443545,-1735.76,0.00013698,2]
[329918176,1718831443556,-500.0,0.00013698,2]
[329918178,1718831443566,-1934.02,0.00013698,2]
[329918180,1718831443575,-500.0,0.00013698,2]
[329918182,1718831443585,-500.0,0.00013698,2]
[329918183,1718831443594,-500.0,0.00013698,2]
[329918184,1718831443604,-500.0,0.00013698,2]
[329918185,1718831443613,-1251.87,0.00013698,2]
[329918187,1718831443622,-500.0,0.00013698,2]
[329918189,1718831443633,-500.0,0.00013698,2]
[329918191,1718831443642,-500.0,0.00013698,2]
[329918193,1718831443651,-500.0,0.00013698,2]
[329918194,1718831443661,-500.0,0.00013698,2]
[329918195,1718831443671,-7779.14816628,0.00013698,2]
[329918196,1718831443708,-361.12140118,0.00013698,2]
[329918197,1718831443720,-559.51628042,0.00013698,2]
[329918198,1718831443731,-763.48000001,0.00013698,2]
[329918199,1718831443743,-265.760515,0.00013698,2]
[329918202,1718831443790,-489.3506331,0.00013698,2]
[329918204,1718831443800,-500.0,0.00013698,2]
[329918206,1718831443810,-1901.04,0.00013698,2]
[329918208,1718831443820,-500.0,0.00013698,2]
[329918209,1718831443830,-500.0,0.00013698,2]
[329918210,1718831443839,-574.89595738,0.00013698,2]
[329918211,1718831443849,-500.0,0.00013698,2]
[329918212,1718831443858,-500.0,0.00013698,2]
[329918214,1718831443867,-773.77,0.00013698,2]
[329918215,1718831443876,-500.0,0.00013698,2]
[329918216,1718831443885,-500.0,0.00013698,2]
[329918217,1718831443895,-589.77,0.00013698,2]
[329918218,1718831443904,-500.0,0.00013698,2]
[329918219,1718831443914,-2615.08,0.00013698,2]
[329918220,1718831443923,-500.0,0.00013698,2]
[329918221,1718831443932,-500.0,0.00013698,2]
[329918222,1718831443941,-500.0,0.00013698,2]
[329918223,1718831443951,-500.0,0.00013698,2]
[329918224,1718831443960,-500.0,0.00013698,2]
[329918225,1718831443970,-1034.45,0.00013698,2]
[329918226,1718831443979,-669.39,0.00013698,2]
[329918227,1718831443989,-500.0,0.00013698,2]
[329918228,1718831443999,-500.0,0.00013698,2]
[329918229,1718831444008,-500.0,0.00013698,2]
[329918230,1718831444018,-1614.64,0.00013698,2]
[329918231,1718831444027,-500.0,0.00013698,2]
[329918232,1718831444036,-500.0,0.00013698,2]
[329918233,1718831444046,-1814.51,0.00013698,2]
[329918234,1718831444055,-500.0,0.00013698,2]
[329918235,1718831444064,-500.0,0.00013698,2]
[329918236,1718831444074,-500.0,0.00013698,2]
[329918237,1718831444083,-500.0,0.00013698,2]
[329918238,1718831444092,-500.0,0.00013698,2]
[329918239,1718831444102,-500.0,0.00013698,2]
[329918240,1718831444111,-518.98205229,0.00013698,2]
[329918241,1718831444120,-589.98,0.00013698,2]
[329918242,1718831444130,-500.0,0.00013698,2]
[329918243,1718831444139,-500.0,0.00013698,2]
[329918244,1718831444149,-500.0,0.00013698,2]
[329918245,1718831444159,-778.83010087,0.00013698,5]
[329918246,1718831444168,-500.0,0.00013698,2]
[329918247,1718831444181,-738.04,0.00013698,2]
[329918248,1718831444191,-1481.22,0.00013698,2]
[329918249,1718831444200,-500.0,0.00013698,2]
[329918250,1718831444210,-762.61,0.00013698,2]
[329918251,1718831444219,-250.0,0.00013698,2]
[329918252,1718831444228,-500.0,0.00013698,2]
[329918253,1718831444237,-500.0,0.00013698,2]
[329918254,1718831444247,-500.0,0.00013698,2]
[329918255,1718831444259,-500.0,0.00013698,2]
[329918256,1718831444268,-500.0,0.00013698,2]
[329918257,1718831444277,-500.0,0.00013698,2]
[329918258,1718831444287,-500.0,0.00013698,2]
[329918259,1718831444299,-5000.0,0.00013698,2]
[329918260,1718831444310,-1331.73,0.00013698,2]
[329918261,1718831444319,-500.0,0.00013698,2]
[329918262,1718831444330,-500.0,0.00013698,2]
[329918263,1718831444340,-500.0,0.00013698,2]
[329918264,1718831444350,-500.0,0.00013698,2]
[329918265,1718831444359,-969.8,0.00013698,2]
[329918266,1718831444369,-1045.73,0.00013698,2]
[329918267,1718831444379,-500.0,0.00013698,2]
[329918268,1718831444388,-500.0,0.00013698,2]
[329918269,1718831444396,-1239.86,0.00013698,2]
[329918270,1718831444407,-514.85,0.00013698,2]
[329918271,1718831444416,-512.9,0.00013698,2]
[329918272,1718831444425,-500.0,0.00013698,2]
[329918273,1718831444435,-500.0,0.00013698,2]
[329918274,1718831444445,-500.0,0.00013698,2]
[329918275,1718831444454,-500.0,0.00013698,2]
[329918276,1718831444464,-500.0,0.00013698,2]
[329918277,1718831444473,-500.0,0.00013698,2]
[329918278,1718831444482,-500.0,0.00013698,2]
[329918279,1718831444492,-761.32,0.00013698,2]
[329918280,1718831444501,-500.0,0.00013698,2]
[329918281,1718831444512,-500.0,0.00013698,2]
[329918282,1718831444521,-500.0,0.00013698,2]
[329918283,1718831444531,-500.0,0.00013698,2]
[329918284,1718831444621,-500.0,0.00013698,2]
[329918285,1718831444631,-503.07,0.00013698,2]
[329918286,1718831444641,-500.0,0.00013698,2]
[329918287,1718831444650,-500.0,0.00013698,2]
[329918288,1718831444661,-500.0,0.00013698,2]
[329918289,1718831444670,-500.0,0.00013698,2]
[329918290,1718831444679,-500.0,0.00013698,2]
[329918291,1718831444688,-238.33044982,0.00013698,2]
[329918292,1718831444697,-500.0,0.00013698,2]
[329918293,1718831444706,-500.0,0.00013698,2]
[329918294,1718831444716,-500.0,0.00013698,2]
[329918295,1718831444725,-500.0,0.00013698,2]
[329918296,1718831444735,-906.07,0.00013698,2]
[329918297,1718831444744,-500.0,0.00013698,2]
[329918298,1718831444753,-1277.42,0.00013698,2]
[329918299,1718831444763,-500.0,0.00013698,2]
[329918300,1718831444772,-506.84700864,0.00013698,2]
[329918301,1718831444781,-1146.09,0.00013698,2]
[329918302,1718831444791,-500.0,0.00013698,2]
[329918303,1718831444801,-500.0,0.00013698,2]
[329918304,1718831444810,-220.09025304,0.00013698,2]
[329918305,1718831444820,-500.0,0.00013698,2]
[329918306,1718831444829,-486.13597968,0.00013698,2]
[329918307,1718831444839,-255.2757795,0.00013698,2]
[329918308,1718831444848,-500.0,0.00013698,2]
[329918309,1718831444858,-500.0,0.00013698,2]
[329918310,1718831444868,-500.0,0.00013698,2]
[329918311,1718831444877,-500.0,0.00013698,2]
[329918312,1718831444886,-1750.54,0.00013698,2]
[329918313,1718831444896,-500.0,0.00013698,2]
[329918314,1718831444905,-500.0,0.00013698,2]
[329918315,1718831444915,-500.0,0.00013698,2]
[329918316,1718831444924,-500.0,0.00013698,2]
[329918317,1718831444933,-563.5,0.00013698,2]
[329918318,1718831444943,-500.0,0.00013698,2]
[329918319,1718831444952,-1285.94,0.00013698,2]
[329918320,1718831444961,-500.0,0.00013698,2]
[329918321,1718831444970,-500.0,0.00013698,2]
[329918322,1718831444979,-500.0,0.00013698,2]
[329918323,1718831444989,-500.0,0.00013698,2]
[329918324,1718831444998,-2063.43,0.00013698,2]
[329918325,1718831445008,-1303.04,0.00013698,2]
[329918326,1718831445018,-500.0,0.00013698,2]
[329918327,1718831445027,-500.0,0.00013698,2]
[329918328,1718831445036,-500.0,0.00013698,2]
[329918329,1718831445045,-500.0,0.00013698,2]
[329918330,1718831445055,-500.0,0.00013698,2]
[329918331,1718831445064,-500.0,0.00013698,2]
[329918332,1718831445073,-500.0,0.00013698,2]
[329918333,1718831445083,-500.0,0.00013698,2]
[329918334,1718831445092,-1000.0,0.00013698,2]
[329918335,1718831445101,-1327.48,0.00013698,2]
[329918336,1718831445111,-500.0,0.00013698,2]
[329918337,1718831445120,-500.0,0.00013698,2]
[329918338,1718831445129,-500.0,0.00013698,2]
[329918339,1718831445139,-500.0,0.00013698,2]
[329918340,1718831445148,-500.0,0.00013698,2]
[329918341,1718831445157,-611.14349406,0.00013698,2]
[329918342,1718831445169,-840.03,0.00013698,2]
[329918343,1718831445178,-500.0,0.00013698,2]
[329918344,1718831445188,-500.0,0.00013698,2]
[329918345,1718831445197,-500.0,0.00013698,2]
[329918346,1718831445206,-550.93000115,0.00013698,2]
[329918347,1718831445215,-500.0,0.00013698,2]
[329918348,1718831445224,-699.21,0.00013698,2]
[329918349,1718831445234,-560.77,0.00013698,2]
[329918350,1718831445243,-500.0,0.00013698,2]
[329918351,1718831445254,-946.28,0.00013698,2]
[329918352,1718831445265,-500.0,0.00013698,2]
[329918353,1718831445274,-500.0,0.00013698,2]
[329918354,1718831445283,-500.0,0.00013698,2]
[329918355,1718831445293,-522.25436774,0.00013698,2]
[329918356,1718831445302,-500.0,0.00013698,2]
[329918357,1718831445311,-500.0,0.00013698,2]
[329918358,1718831445320,-500.0,0.00013698,2]
[329918359,1718831445330,-500.0,0.00013698,2]
[329918360,1718831445340,-610.58,0.00013698,2]
[329918361,1718831445350,-886.26,0.00013698,2]
[329918362,1718831445359,-406.80147267,0.00013698,2]
[329918363,1718831445368,-544.96612685,0.00013698,2]
[329918364,1718831445377,-1282.5,0.00013698,2]
[329918365,1718831445387,-500.0,0.00013698,2]
[329918366,1718831445396,-590.09,0.00013698,2]
[329918367,1718831445406,-500.0,0.00013698,2]
[329918368,1718831445415,-629.95,0.00013698,2]
[329918369,1718831445425,-601.72,0.00013698,2]
[329918370,1718831445435,-500.0,0.00013698,2]
[329918371,1718831445443,-549.36,0.00013698,2]
[329918372,1718831445453,-750.49,0.00013698,2]
[329918373,1718831445462,-500.0,0.00013698,2]
[329918374,1718831445472,-500.0,0.00013698,2]
[329918375,1718831445481,-500.0,0.00013698,2]
[329918376,1718831445490,-250.63900945,0.00013698,2]
[329918377,1718831445498,-500.0,0.00013698,2]
[329918378,1718831445508,-585.475872,0.00013698,2]
[329918379,1718831445517,-501.81,0.00013698,2]
[329918380,1718831445526,-1419.65,0.00013698,2]
[329918381,1718831445535,-500.0,0.00013698,2]
[329918382,1718831445544,-620.36,0.00013698,2]
[329918383,1718831445554,-571.07,0.00013698,2]
[329918384,1718831445563,-923.13,0.00013698,2]
[329918385,1718831445572,-500.0,0.00013698,2]
[329918386,1718831445582,-500.0,0.00013698,2]
[329918387,1718831445591,-559.93,0.00013698,2]
[329918388,1718831445600,-225.84870746,0.00013698,2]
[329918389,1718831445609,-259.53345747,0.00013698,2]
[329918390,1718831445619,-500.0,0.00013698,2]
[329918391,1718831445628,-500.0,0.00013698,2]
[329918392,1718831445638,-500.0,0.00013698,2]
[329918393,1718831445647,-899.57,0.00013698,2]
[329918394,1718831445657,-500.0,0.00013698,2]
[329918395,1718831445666,-500.0,0.00013698,2]
[329918396,1718831445675,-501.74383782,0.00013698,2]
[329918397,1718831445684,-500.0,0.00013698,2]
[329918398,1718831445693,-500.0,0.00013698,2]
[329918399,1718831445702,-1325.43,0.00013698,2]
[329918400,1718831445711,-710.82,0.00013698,2]
[329918401,1718831445720,-500.0,0.00013698,2]
[329918402,1718831445729,-500.0,0.00013698,2]
[329918403,1718831445738,-500.0,0.00013698,2]
[329918404,1718831445747,-500.0,0.00013698,2]
[329918405,1718831445756,-500.0,0.00013698,2]
[329918406,1718831445766,-1506.63,0.00013698,2]
[329918407,1718831445775,-500.0,0.00013698,2]
[329918408,1718831445784,-500.0,0.00013698,2]
[329918409,1718831445793,-1171.88,0.00013698,2]
[329918410,1718831445803,-500.0,0.00013698,2]
[329918411,1718831445812,-2106.01,0.00013698,2]
[329918412,1718831445821,-411.43949995,0.00013698,2]
[329918447,1718831447000,-188.96891994,0.00013641,2]
[329918448,1718831447010,-339.58687843,0.00013697,2]
[329918449,1718831447037,-382.76341553,0.00013697,2]
[329918450,1718831447046,-27.94884636,0.00013698,2]
[329918451,1718831447186,-60.61165369,0.00013698,2]
[329918452,1718831447197,-500.0,0.00013698,2]
[329918453,1718831447207,-465.84477075,0.00013698,2]
[329918454,1718831447219,-34.15522925,0.00013698,2]
[329918455,1718831447229,-358.35872675,0.00013698,2]
[329918456,1718831447241,-141.64127325,0.00013698,2]
[329918457,1718831447252,-500.0,0.00013698,2]
[329918458,1718831447263,-382.18189756,0.00013698,2]
[329918459,1718831447275,-226.80507212,0.00013698,2]
[329918460,1718831447284,-509.18,0.00013698,2]
[329918461,1718831447295,-25.03751449,0.00013698,2]
[329918462,1718831447380,-294.14994472,0.00013698,2]
[329918463,1718831447393,-180.81254079,0.00013698,2]
[329918464,1718831447402,-500.0,0.00013698,2]
[329918465,1718831447413,-1187.24,0.00013698,2]
[329918466,1718831447423,-508.84653414,0.00013698,2]
[329918467,1718831447432,-1221.23,0.00013698,2]
[329918468,1718831447443,-500.0,0.00013698,2]
[329918469,1718831447453,-383.97428408,0.00013698,2]
[329918470,1718831447465,-500.0,0.00013698,2]
[329918471,1718831447476,-500.56060688,0.00013698,2]
[329918472,1718831447486,-500.0,0.00013698,2]
[329918473,1718831447497,-500.0,0.00013698,2]
[329918474,1718831447506,-500.0,0.00013698,2]
[329918475,1718831447516,-500.0,0.00013698,2]
[329918476,1718831447527,-579.65,0.00013698,2]
[329918477,1718831447537,-500.0,0.00013698,2]
[329918478,1718831447547,-500.0,0.00013698,2]
[329918479,1718831447557,-500.0,0.00013698,2]
[329918480,1718831447567,-500.0,0.00013698,2]
[329918481,1718831447576,-500.0,0.00013698,2]
[329918482,1718831447586,-273.26093107,0.00013698,2]
[329918483,1718831447599,-559.40606601,0.00013698,2]
[329918484,1718831447612,-328.7496445,0.00013698,2]
[329918485,1718831447624,-498.32335842,0.00013698,2]
[329918486,1718831447634,-500.0,0.00013698,2]
[329918487,1718831447644,-500.0,0.00013698,2]
[329918488,1718831447653,-249.25164158,0.00013698,2]
[329918489,1718831447665,-840.41835842,0.00013698,2]
[329918490,1718831447675,-500.0,0.00013698,2]
[329918491,1718831447685,-500.0,0.00013698,2]
[329918492,1718831447694,-151.26905882,0.00013698,2]
[329918493,1718831447704,-500.0,0.00013698,2]
[329918494,1718831447714,-500.0,0.00013698,2]
[329918495,1718831447723,-500.0,0.00013698,2]
[329918496,1718831447733,-500.0,0.00013698,2]
[329918497,1718831447742,-500.0,0.00013698,2]
[329918498,1718831447751,-500.0,0.00013698,2]
[329918499,1718831447761,-500.0,0.00013698,2]
[329918500,1718831447771,-512.53079916,0.00013698,2]
[329918501,1718831447780,-770.39,0.00013698,2]
[329918502,1718831447789,-638.4,0.00013698,2]
[329918503,1718831447799,-575.85,0.00013698,2]
[329918504,1718831447808,-775.5,0.00013698,2]
[329918505,1718831447819,-500.0,0.00013698,2]
[329918506,1718831447828,-500.0,0.00013698,2]
[329918507,1718831447838,-500.0,0.00013698,2]
[329918508,1718831447848,-500.0,0.00013698,2]
[329918509,1718831447858,-267.45612405,0.00013698,2]
[329918510,1718831447867,-590.16,0.00013698,2]
[329918511,1718831447877,-500.0,0.00013698,2]
[329918512,1718831447887,-500.0,0.00013698,2]
[329918513,1718831447896,-1611.58,0.00013698,2]
[329918514,1718831447906,-500.0,0.00013698,2]
[329918515,1718831447916,-500.0,0.00013698,2]
[329918516,1718831447926,-500.0,0.00013698,2]
[329918517,1718831447936,-500.0,0.00013698,2]
[329918518,1718831447945,-506.07892821,0.00013698,2]
[329918519,1718831447955,-500.0,0.00013698,2]
[329918520,1718831447966,-1163.74,0.00013698,2]
[329918521,1718831447976,-893.81,0.00013698,2]
[329918522,1718831447986,-1500.33,0.00013698,2]
[329918523,1718831447994,-151.0,0.00013698,2]
[329918524,1718831448004,-500.0,0.00013698,2]
[329918525,1718831448014,-151.0,0.00013698,2]
[329918526,1718831448023,-500.0,0.00013698,2]
[329918527,1718831448033,-500.0,0.00013698,2]
[329918528,1718831448046,-500.0,0.00013698,2]
[329918529,1718831448056,-500.0,0.00013698,2]
[329918530,1718831448066,-535.87143268,0.00013698,2]
[329918531,1718831448076,-500.0,0.00013698,2]
[329918532,1718831448085,-406.6135559,0.00013698,2]
[329918533,1718831448095,-500.0,0.00013698,2]
[329918534,1718831448105,-500.0,0.00013698,2]
[329918535,1718831448114,-500.0,0.00013698,2]
[329918536,1718831448124,-516.8333307,0.00013698,2]
[329918537,1718831448134,-500.0,0.00013698,2]
[329918538,1718831448143,-500.0,0.00013698,2]
[329918539,1718831448154,-500.0,0.00013698,2]
[329918540,1718831448163,-1137.52,0.00013698,2]
[329918541,1718831448173,-500.0,0.00013698,2]
[329918542,1718831448183,-277.19359307,0.00013698,2]
[329918543,1718831448193,-806.61,0.00013698,2]
[329918544,1718831448202,-500.0,0.00013698,2]
[329918545,1718831448212,-1269.52,0.00013698,2]
[329918546,1718831448223,-500.0,0.00013698,2]
[329918547,1718831448233,-500.0,0.00013698,2]
[329918548,1718831448243,-500.0,0.00013698,2]
[329918549,1718831448253,-500.0,0.00013698,2]
[329918550,1718831448264,-513.39,0.00013698,2]
[329918551,1718831448275,-447.61608092,0.00013698,2]
[329918552,1718831448284,-500.0,0.00013698,2]
[329918553,1718831448294,-500.0,0.00013698,2]
[329918554,1718831448304,-500.0,0.00013698,2]
[329918555,1718831448313,-500.0,0.00013698,2]
[329918556,1718831448323,-500.0,0.00013698,2]
[329918557,1718831448333,-500.0,0.00013698,2]
[329918558,1718831448343,-1558.63,0.00013698,2]
[329918559,1718831448352,-500.0,0.00013698,2]
[329918560,1718831448362,-500.0,0.00013698,2]
[329918561,1718831448371,-500.0,0.00013698,2]
[329918562,1718831448381,-500.0,0.00013698,2]
[329918563,1718831448391,-700.31,0.00013698,2]
[329918564,1718831448401,-500.0,0.00013698,2]
[329918565,1718831448412,-3391.31,0.00013698,2]
[329918566,1718831448422,-647.94,0.00013698,2]
[329918567,1718831448432,-500.0,0.00013698,2]
[329918568,1718831448441,-551.18879589,0.00013698,2]
[329918569,1718831448451,-500.0,0.00013698,2]
[329918570,1718831448460,-1733.67,0.00013698,2]
[329918571,1718831448470,-500.0,0.00013698,2]
[329918572,1718831448480,-500.0,0.00013698,2]
[329918573,1718831448490,-500.0,0.00013698,2]
[329918574,1718831448499,-738.09,0.00013698,2]
[329918575,1718831448510,-1052.01,0.00013698,2]
[329918576,1718831448520,-500.0,0.00013698,2]
[329918577,1718831448530,-502.13812658,0.00013698,2]
[329918578,1718831448540,-504.80591888,0.00013698,2]
[329918579,1718831448549,-500.0,0.00013698,2]
[329918580,1718831448559,-500.0,0.00013698,2]
[329918581,1718831448570,-2117.42,0.00013698,2]
[329918582,1718831448579,-500.0,0.00013698,2]
[329918583,1718831448589,-500.0,0.00013698,2]
[329918584,1718831448599,-500.0,0.00013698,2]
[329918585,1718831448609,-907.87,0.00013698,2]
[329918586,1718831448619,-500.0,0.00013698,2]
[329918587,1718831448629,-500.0,0.00013698,2]
[329918588,1718831448641,-500.0,0.00013698,2]
[329918589,1718831448651,-500.0,0.00013698,2]
[329918590,1718831448661,-1491.57,0.00013698,2]
[329918591,1718831448671,-500.0,0.00013698,2]
[329918592,1718831448681,-672.58,0.00013698,2]
[329918593,1718831448691,-500.0,0.00013698,2]
[329918594,1718831448702,-500.0,0.00013698,2]
[329918595,1718831448712,-500.0,0.00013698,2]
[329918596,1718831448722,-500.0,0.00013698,2]
[329918597,1718831448732,-500.0,0.00013698,2]
[329918598,1718831448742,-1020.48,0.00013698,2]
[329918599,1718831448752,-500.0,0.00013698,2]
[329918600,1718831448762,-500.0,0.00013698,2]
[329918601,1718831448772,-500.0,0.00013698,2]
[329918602,1718831448781,-500.0,0.00013698,2]
[329918603,1718831448792,-500.0,0.00013698,2]
[329918604,1718831448802,-520.90751908,0.00013698,2]
[329918605,1718831448811,-500.0,0.00013698,2]
[329918606,1718831448822,-1479.86,0.00013698,2]
[329918607,1718831448831,-500.0,0.00013698,2]
[329918608,1718831448841,-1310.82,0.00013698,2]
[329918609,1718831448851,-500.0,0.00013698,2]
[329918610,1718831448861,-500.0,0.00013698,2]
[329918611,1718831448870,-1901.46,0.00013698,2]
[329918612,1718831448880,-506.19062362,0.00013698,2]
[329918613,1718831448889,-500.0,0.00013698,2]
[329918614,1718831448899,-1696.52,0.00013698,2]
[329918615,1718831448910,-199.70208281,0.00013698,2]
[329918616,1718831448920,-510.83897527,0.00013698,2]
[329918617,1718831448930,-500.0,0.00013698,2]
[329918618,1718831448939,-500.0,0.00013698,2]
[329918619,1718831448949,-500.0,0.00013698,2]
[329918620,1718831448959,-1872.39,0.00013698,2]
[329918621,1718831448969,-500.0,0.00013698,2]
[329918622,1718831448979,-500.0,0.00013698,2]
[329918623,1718831448989,-500.0,0.00013698,2]
[329918624,1718831448999,-626.17,0.00013698,2]
[329918625,1718831449010,-500.0,0.00013698,2]
[329918626,1718831449020,-500.0,0.00013698,2]
[329918627,1718831449029,-500.0,0.00013698,2]
[329918628,1718831449039,-500.0,0.00013698,2]
[329918629,1718831449050,-1029.67,0.00013698,2]
[329918630,1718831449060,-500.0,0.00013698,2]
[329918631,1718831449070,-500.0,0.00013698,2]
[329918632,1718831449080,-500.77159313,0.00013698,2]
[329918633,1718831449091,-1030.97,0.00013698,2]
[329918634,1718831449100,-500.0,0.00013698,2]
[329918635,1718831449110,-1536.57,0.00013698,2]
[329918636,1718831449120,-500.0,0.00013698,2]
[329918637,1718831449130,-1027.84,0.00013698,2]
[329918638,1718831449140,-500.0,0.00013698,2]
[329918639,1718831449150,-500.0,0.00013698,2]
[329918640,1718831449161,-500.0,0.00013698,2]
[329918641,1718831449171,-500.0,0.00013698,2]
[329918642,1718831449182,-500.0,0.00013698,2]
[329918643,1718831449192,-500.0,0.00013698,2]
[329918644,1718831449202,-602.58,0.00013698,2]
[329918645,1718831449213,-500.0,0.00013698,2]
[329918646,1718831449223,-500.0,0.00013698,2]
[329918647,1718831449233,-500.0,0.00013698,2]
[329918648,1718831449243,-500.0,0.00013698,2]
[329918649,1718831449255,-500.0,0.00013698,2]
[329918650,1718831449267,-500.0,0.00013698,2]
[329918651,1718831449277,-500.0,0.00013698,2]
[329918652,1718831449288,-500.0,0.00013698,2]
[329918653,1718831449298,-946.83,0.00013698,2]
[329918654,1718831449308,-500.0,0.00013698,2]
[329918655,1718831449318,-900.34,0.00013698,2]
[329918656,1718831449328,-500.0,0.00013698,2]
[329918657,1718831449340,-1497.48,0.00013698,2]
[329918658,1718831449351,-500.0,0.00013698,2]
[329918659,1718831449361,-500.0,0.00013698,2]
[329918660,1718831449370,-617.54,0.00013698,2]
[329918661,1718831449380,-946.8,0.00013698,2]
[329918662,1718831449391,-500.0,0.00013698,2]
[329918663,1718831449400,-2279.8,0.00013698,2]
[329918664,1718831449411,-649.45373699,0.00013698,2]
[329918665,1718831449421,-500.0,0.00013698,2]
[329918666,1718831449431,-500.0,0.00013698,2]
[329918667,1718831449743,-500.0,0.00013698,2]
[329918668,1718831449753,-618.71,0.00013698,2]
[329918669,1718831449763,-500.0,0.00013698,2]
[329918670,1718831449773,-500.0,0.00013698,2]
[329918671,1718831449782,-732.59,0.00013698,2]
[329918672,1718831449792,-507.2877174,0.00013698,2]
[329918673,1718831449802,-501.41,0.00013698,2]
[329918674,1718831449811,-848.54,0.00013698,2]
[329918675,1718831449821,-783.35,0.00013698,2]
[329918676,1718831449831,-500.0,0.00013698,2]
[329918677,1718831449840,-1850.62,0.00013698,2]
[329918678,1718831449851,-2486.82,0.00013698,2]
[329918679,1718831449860,-520.28527902,0.00013698,2]
[329918680,1718831449870,-507.96,0.00013698,2]
[329918681,1718831449880,-500.0,0.00013698,2]
[329918682,1718831449891,-500.0,0.00013698,2]
[329918683,1718831449902,-500.0,0.00013698,2]
[329918684,1718831449912,-500.0,0.00013698,2]
[329918685,1718831449922,-573.79,0.00013698,2]
[329918686,1718831449938,-573.79,0.00013698,2]
[329918687,1718831449948,-573.79,0.00013698,2]
[329918688,1718831449958,-573.79,0.00013698,2]
[329918689,1718831449968,-500.0,0.00013698,2]
[329918690,1718831449977,-573.79,0.00013698,2]
[329918691,1718831449987,-500.0,0.00013698,2]
[329918692,1718831449998,-573.79,0.00013698,2]
[329918693,1718831450007,-573.79,0.00013698,2]
[329918694,1718831450017,-538.14,0.00013698,2]
[329918695,1718831450027,-523.46,0.00013698,2]
[329918696,1718831450036,-573.79,0.00013698,2]
[329918697,1718831450046,-2042.63,0.00013698,2]
[329918698,1718831450056,-573.79,0.00013698,2]
[329918699,1718831450067,-500.0,0.00013698,2]
[329918700,1718831450077,-500.0,0.00013698,2]
[329918701,1718831450086,-573.79,0.00013698,2]
[329918702,1718831450096,-573.79,0.00013698,2]
[329918703,1718831450106,-573.79,0.00013698,2]
[329918704,1718831450115,-500.0,0.00013698,2]
[329918705,1718831450124,-151.0,0.00013698,2]
[329918706,1718831450134,-500.0,0.00013698,2]
[329918707,1718831450143,-151.0,0.00013698,2]
[329918708,1718831450152,-500.0,0.00013698,2]